bitfinex/quotes_ETHUSD_20241104
["timestamp","ask_amount","ask_price","bid_price","bid_amount"]
[1730749745588,0.7553,2432.2,2431.9,7.75834859]
[1730749745794,0.7553,2432.2,2432.0,0.16124412]
[1730749745995,0.7553,2432.2,2431.9,7.67611656]
[1730749746180,0.7553,2432.2,2432.0,0.16124679]
[1730749746387,0.7553,2432.2,2431.9,7.67611656]
[1730749746575,0.7553,2432.2,2432.0,0.16124388]
[1730749746775,4.8668,2432.2,2431.9,3.56413656]
[1730749747101,4.11168,2432.1,2431.6,7.67661656]
[1730749747400,0.757,2431.9,2431.7,0.16167777]
[1730749747612,0.757,2431.9,2431.6,3.64637411]
[1730749747817,0.757,2431.9,2431.7,0.16169412]
[1730749747965,0.757,2431.9,2431.7,4.11225]
[1730749749821,0.757,2431.9,2431.6,3.64637744]
[1730749750020,0.757,2431.9,2431.6,7.75887744]
[1730749750487,0.757,2431.9,2431.6,3.64637744]
[1730749750683,0.757,2431.9,2431.7,4.11234]
[1730749750885,4.90542,2432.1,2431.6,3.64637744]
[1730749751114,4.90542,2432.1,2431.6,7.75880744]
[1730749751529,4.90542,2432.1,2431.7,4.11232]
[1730749751829,0.7936,2432.1,2431.8,4.1121]
[1730749752814,4.90536,2432.1,2431.7,4.11232]
[1730749753333,0.7936,2432.1,2431.7,8.30683774]
[1730749753489,0.7936,2432.1,2431.8,4.11216]
[1730749754999,4.90529,2432.1,2431.7,4.19457573]
[1730749755330,4.90529,2432.1,2431.8,4.11215]
[1730749755331,0.7936,2432.1,2431.8,4.11215]
[1730749756131,4.9053,2432.1,2431.7,4.19455551]
[1730749756309,0.7936,2432.1,2431.7,4.19455551]
[1730749756532,4.11152,2432.2,2431.8,4.11216]
[1730749756841,0.7779,2432.3,2431.9,7.75827303]
[1730749757126,4.88931,2432.3,2431.9,7.67603656]
[1730749758124,4.11152,2432.2,2431.8,4.11215]
[1730749758337,4.89802,2432.1,2431.6,3.56413656]
[1730749758504,4.11185,2432.0,2431.6,7.67656656]
[1730749758911,4.89825,2431.9,2431.6,3.56413656]
[1730749759298,4.89825,2431.9,2431.6,3.64637802]
[1730749759299,0.7862,2431.9,2431.6,3.64637802]
[1730749759499,4.11228,2431.8,2431.3,3.56413656]
[1730749759697,0.7862,2431.7,2431.4,0.16142646]
[1730749760185,4.11197,2432.0,2431.6,3.56413656]
[1730749760305,4.11203,2431.9,2431.6,3.56413656]
[1730749762512,4.11197,2432.0,2431.6,7.67662656]
[1730749762705,4.11197,2432.0,2431.6,3.56413656]
[1730749762906,4.11212,2431.9,2431.6,3.56413656]
[1730749765417,4.11212,2431.9,2431.7,1.53593842]
[1730749765618,4.601787,2432.0,2431.7,1.53593842]
[1730749766255,0.7862,2432.1,2431.9,1.53593842]
[1730749767463,4.89794,2432.1,2431.9,1.53593842]
[1730749768622,4.11191,2432.0,2431.7,1.53593842]
[1730749769335,4.11191,2432.0,2431.7,1.61817681]
[1730749769730,4.11218,2431.8,2431.5,2.30243842]
[1730749769934,4.88635,2431.7,2431.6,0.1616251]
[1730749770159,4.88635,2431.7,2431.1,2.29683842]
[1730749770160,4.11273,2431.5,2431.3,1.53593842]
[1730749770377,0.774,2431.3,2431.1,1.53593842]
[1730749770518,4.88709,2431.3,2431.1,1.53593842]
[1730749770948,0.774,2431.3,2431.1,1.53593842]
[1730749771329,0.774,2431.3,2431.0,7.68051954]
[1730749771853,8.22647,2431.2,2430.8,4.11378]
[1730749772052,4.11319,2431.2,2430.8,4.19604795]
[1730749772674,4.11319,2431.2,2430.8,8.30983795]
[1730749772864,4.11319,2431.2,2430.8,8.22757]
[1730749773096,8.2265,2431.2,2430.8,4.11378]
[1730749773310,4.11343,2431.1,2430.7,7.68109954]
[1730749773596,4.11343,2431.1,2430.8,0.16159701]
[1730749773806,4.11343,2431.1,2430.7,7.7633021]
[1730749774893,4.11354,2431.0,2430.7,3.6493621]
[1730749775101,4.11348,2431.1,2430.6,8.22834]
[1730749775408,8.715673,2431.1,2430.6,8.22834]
[1730749775700,0.488743,2431.1,2430.7,4.11395]
[1730749776002,4.11322,2431.2,2430.7,4.11395]
[1730749776297,4.11337,2431.1,2430.7,4.11395]
[1730749777305,4.11337,2431.1,2430.7,4.11403]
[1730749778854,4.11322,2431.2,2430.7,4.11403]
[1730749779055,8.22655,2431.2,2430.7,4.11403]
[1730749779495,4.11322,2431.2,2430.7,4.11403]
[1730749779674,4.11339,2431.1,2430.7,4.11403]
[1730749780788,4.601942,2431.2,2430.5,4.35368954]
[1730749780789,0.774,2431.3,2430.9,4.11363]
[1730749781293,4.88702,2431.3,2430.9,4.11363]
[1730749781462,0.774,2431.3,2430.9,4.11362]
[1730749781662,4.88704,2431.3,2430.9,4.11362]
[1730749782872,4.88704,2431.3,2430.8,7.68093954]
[1730749782873,4.1132,2431.2,2430.8,7.68093954]
[1730749783400,4.11336,2431.1,2430.8,3.56708954]
[1730749783608,0.8326,2431.0,2430.8,3.56708954]
[1730749784771,4.94581,2431.2,2430.8,3.56708954]
[1730749784975,4.94581,2431.2,2430.8,7.68095954]
[1730749785187,0.8326,2431.2,2430.8,7.68095954]
[1730749785407,4.88373,2431.4,2430.9,4.93648]
[1730749785573,4.11303,2431.3,2430.9,4.93648]
[1730749787515,4.11303,2431.3,2430.9,4.93643]
[1730749787877,4.11273,2431.5,2431.1,3.56708954]
[1730749790377,1.45991559,2431.6,2430.9,0.8228]
[1730749790378,4.11297,2431.4,2430.9,0.8228]
[1730749790580,0.411297,2431.3,2430.9,0.8228]
[1730749790886,4.11291,2431.4,2430.9,5.01867504]
[1730749791111,4.11291,2431.4,2431.0,4.11352]
[1730749792514,5.57250559,2431.6,2431.2,4.11312]
[1730749792738,5.57250559,2431.6,2431.2,4.91722]
[1730749793016,4.92859,2431.6,2431.2,0.8041]
[1730749793377,4.92859,2431.6,2431.2,2.34061398]
[1730749793774,9.04127,2431.6,2431.2,2.34061398]
[1730749795617,4.92859,2431.6,2431.2,2.34061398]
[1730749795828,9.04123,2431.6,2431.2,2.34061398]
[1730749796182,4.1127,2431.5,2431.2,2.34061398]
[1730749797121,4.11327,2431.2,2430.8,2.29491398]
[1730749797327,4.11327,2431.2,2431.0,1.53651398]
[1730749798931,8.22657,2431.2,2431.0,1.53651398]
[1730749799419,4.11327,2431.2,2431.0,1.53651398]
[1730749800320,8.22659,2431.2,2431.0,1.53651398]
[1730749800522,4.1136,2431.0,2430.8,1.53651398]
[1730749800723,4.1136,2431.0,2430.9,0.16182371]
[1730749800921,4.11343,2431.1,2430.9,0.16182371]
[1730749801220,4.11343,2431.1,2430.8,1.53651398]
[1730749801582,8.22693,2431.1,2430.8,1.53651398]
[1730749801735,8.22693,2431.1,2430.9,0.16185115]
[1730749801927,8.22693,2431.1,2430.8,1.53651398]
[1730749802123,4.11353,2431.0,2430.9,0.16185232]
[1730749802364,4.11353,2431.0,2430.8,1.53651398]
[1730749802887,4.11353,2431.0,2430.9,0.16183399]
[1730749803223,4.11343,2431.1,2430.9,0.16183399]
[1730749803535,4.11343,2431.1,2431.0,1.53651398]
[1730749804120,0.8258,2431.3,2431.0,1.53651398]
[1730749804121,4.11304,2431.3,2431.0,1.53651398]
[1730749804480,4.11286,2431.4,2431.2,1.53651398]
[1730749804621,4.11298,2431.4,2431.2,1.53651398]
[1730749805143,4.11298,2431.4,2431.0,1.53651398]
[1730749805473,4.11303,2431.3,2431.1,0.161866]
[1730749805676,0.7927,2431.5,2431.2,1.53651398]
[1730749805829,4.90542,2431.5,2431.2,1.53651398]
[1730749806362,4.11272,2431.5,2431.2,1.53651398]
[1730749807726,0.8323,2431.7,2431.2,1.53651398]
[1730749807970,4.94471,2431.7,2431.4,1.53651398]
[1730749808170,4.11254,2431.6,2431.4,1.53651398]
[1730749809709,4.11288,2431.4,2431.2,1.53651398]
[1730749810053,4.11302,2431.3,2431.0,2.32411398]
[1730749810252,4.11302,2431.3,2430.8,4.11379]
[1730749810253,4.11326,2431.2,2430.8,2.32411398]
[1730749810453,4.11357,2431.0,2430.9,0.16185425]
[1730749811081,4.11326,2431.2,2430.9,0.16185425]
[1730749811082,4.11343,2431.1,2430.9,0.16185425]
[1730749811263,4.11343,2431.1,2430.8,1.53651398]
[1730749811476,4.11343,2431.1,2430.9,0.16186015]
[1730749811662,4.11343,2431.1,2430.8,1.53651398]
[1730749812005,4.11343,2431.1,2430.9,0.16185217]
[1730749812207,4.11343,2431.1,2430.8,1.53651398]
[1730749812497,4.11343,2431.1,2430.9,0.16185568]
[1730749812791,4.11343,2431.1,2431.0,1.53651398]
[1730749813380,4.11323,2431.2,2430.7,7.6816634]
[1730749813593,4.11337,2431.1,2430.8,0.16186956]
[1730749813771,4.11337,2431.1,2430.9,0.16186956]
[1730749813975,4.11337,2431.1,2430.7,7.6816634]
[1730749814156,4.11323,2431.2,2430.8,0.1618667]
[1730749814357,4.11323,2431.2,2430.9,0.1618667]
[1730749814558,0.8191,2431.3,2431.0,0.1618667]
[1730749814797,4.11319,2431.2,2431.0,0.8237]
[1730749815158,5.83711355,2431.4,2431.0,0.8237]
[1730749815159,4.11305,2431.3,2431.0,0.8237]
[1730749815359,4.11305,2431.3,2431.0,4.3914834]
[1730749815596,4.11321,2431.2,2431.0,4.3914834]
[1730749817282,4.11338,2431.1,2430.8,0.8064]
[1730749817514,4.11338,2431.1,2430.9,0.16187764]
[1730749817694,4.11338,2431.1,2431.0,0.16187764]
[1730749818691,4.11338,2431.1,2430.8,0.8064]
[1730749818999,5.83718355,2431.3,2430.9,0.1618766]
[1730749819307,1.72414355,2431.4,2431.1,4.91973]
[1730749819514,4.1128,2431.5,2431.1,4.91973]
[1730749819515,5.83694355,2431.5,2431.2,0.1618766]
[1730749819801,5.83692355,2431.5,2431.1,4.91973]
[1730749820002,5.83692355,2431.5,2431.2,0.16187511]
[1730749820003,4.11285,2431.4,2431.2,0.16187511]
[1730749820206,5.83685355,2431.5,2431.3,0.16187511]
[1730749820505,4.11271,2431.5,2431.1,4.91974]
[1730749820667,4.11271,2431.5,2431.2,0.16186414]
[1730749820869,4.11271,2431.5,2431.1,4.91974]
[1730749821165,4.11271,2431.5,2431.2,0.16186593]
[1730749821367,4.11271,2431.5,2431.3,0.16184676]
[1730749821686,4.11271,2431.5,2431.1,4.91974]
[1730749821866,4.11271,2431.5,2431.2,0.1618413]
[1730749822060,4.11271,2431.5,2431.1,4.91974]
[1730749822410,4.11271,2431.5,2431.2,0.1618508]
[1730749822610,8.2255,2431.5,2431.1,4.91974]
[1730749822779,4.11271,2431.5,2431.2,0.16184096]
[1730749823097,5.83667355,2431.6,2431.2,4.11317]
[1730749823411,4.11253,2431.6,2431.3,0.16183625]
[1730749823699,4.11253,2431.6,2431.4,0.16183625]
[1730749823908,4.11253,2431.6,2431.2,4.11317]
[1730749824063,4.11253,2431.6,2431.3,0.16182912]
[1730749824264,4.11253,2431.6,2431.2,4.11317]
[1730749824465,4.11253,2431.6,2431.3,0.1618132]
[1730749824767,4.11253,2431.6,2431.2,4.11317]
[1730749824986,4.11253,2431.6,2431.3,0.16180849]
[1730749825204,4.11253,2431.6,2431.1,4.91974]
[1730749825205,4.1127,2431.5,2431.1,9.11527839]
[1730749825399,4.1127,2431.5,2431.2,0.16179624]
[1730749825614,0.15262885,2431.4,2431.3,0.16179624]
[1730749825909,0.15262885,2431.4,2431.3,0.16179371]
[1730749828861,0.15262885,2431.4,2431.3,4.27481371]
[1730749829072,0.15262885,2431.4,2431.3,9.26385545]
[1730749829211,0.15262885,2431.4,2431.3,12.89488355]
[1730749829413,0.15262885,2431.4,2431.3,12.73308984]
[1730749829618,0.15262885,2431.4,2431.3,12.89478221]
[1730749829812,0.15262885,2431.4,2431.3,13.96471936]
[1730749830059,0.15262885,2431.4,2431.3,12.894819]
[1730749830363,0.15262885,2431.4,2431.3,12.18149577]
[1730749830511,0.15262885,2431.4,2431.3,12.89467254]
[1730749831259,0.15262885,2431.4,2431.3,12.18141239]
[1730749831563,0.15262885,2431.4,2431.3,12.98221915]
[1730749832758,0.15262885,2431.4,2431.3,13.69505431]
[1730749833237,0.15262885,2431.4,2431.3,12.98200219]
[1730749833431,0.15262885,2431.4,2431.3,12.98185103]
[1730749833636,0.15262885,2431.4,2431.3,12.48925419]
[1730749834668,0.15262885,2431.4,2431.3,13.2017806]
[1730749835051,0.15262885,2431.4,2431.3,16.82125419]
[1730749835368,0.15262885,2431.4,2431.3,12.48925419]
[1730749839266,0.15262885,2431.4,2431.3,12.48900365]
[1730749839970,0.15262885,2431.4,2431.3,12.18138117]
[1730749840677,0.15262885,2431.4,2431.3,12.4889702]
[1730749844073,0.15262885,2431.4,2431.3,12.48880938]
[1730749844373,0.15262885,2431.4,2431.3,12.18133772]
[1730749844947,0.15262885,2431.4,2431.3,12.48882473]
[1730749847388,0.15262885,2431.4,2431.3,12.18133772]
[1730749847691,0.15262885,2431.4,2431.3,12.18142146]
[1730749849194,0.15262885,2431.4,2431.3,12.48892018]
[1730749851283,0.15262885,2431.4,2431.3,12.48907463]
[1730749851483,0.15262885,2431.4,2431.3,10.14960254]
[1730749852152,0.15262885,2431.4,2431.3,10.45714638]
[1730749853312,0.15262885,2431.4,2431.3,12.48660262]
[1730749854918,0.15262885,2431.4,2431.3,12.01731801]
[1730749855065,0.15262885,2431.4,2431.3,12.48670534]
[1730749855271,0.15262885,2431.4,2431.3,12.4867284]
[1730749856084,0.15262885,2431.4,2431.3,12.17918183]
[1730749856670,0.15262885,2431.4,2431.3,12.48674067]
[1730749857374,0.15262885,2431.4,2431.3,12.17918183]
[1730749857795,0.15262885,2431.4,2431.3,12.48678959]
[1730749858004,0.15262885,2431.4,2431.3,12.17918183]
[1730749858237,0.15262885,2431.4,2431.3,12.48684195]
[1730749858550,0.15262885,2431.4,2431.3,12.01731801]
[1730749858711,0.15262885,2431.4,2431.3,12.48699132]
[1730749861338,0.15262885,2431.4,2431.3,12.48713905]
[1730749861529,0.15262885,2431.4,2431.3,11.69813905]
[1730749862967,0.15262885,2431.4,2431.3,8.14813905]
[1730749863167,0.15262885,2431.4,2431.3,0.16202293]
[1730749864129,0.93522885,2431.4,2431.3,0.16202293]
[1730749864328,1.85127474,2431.4,2431.3,0.16202293]
[1730749865132,5.96412474,2431.4,2431.3,0.16202293]
[1730749865735,1.85127474,2431.4,2431.3,0.16202293]
[1730749866333,1.85127474,2431.4,2431.1,4.11334]
[1730749866665,1.85127474,2431.4,2431.2,3.72714566]
[1730749866868,1.85127474,2431.4,2431.2,3.56529801]
[1730749867176,1.85127474,2431.4,2431.3,0.16183744]
[1730749867332,1.85127474,2431.4,2431.2,3.56529801]
[1730749867729,0.93522885,2431.4,2431.2,3.56529801]
[1730749867967,0.15262885,2431.4,2431.3,0.16179502]
[1730749868232,0.15262885,2431.4,2431.3,4.11302]
[1730749868431,0.15262885,2431.4,2431.3,0.16179513]
[1730749869569,5.02287885,2431.4,2431.3,0.16179513]
[1730749869743,4.11312,2431.3,2431.0,0.5669927]
[1730749869945,4.11312,2431.3,2431.1,0.1617621]
[1730749870134,4.11312,2431.3,2430.9,3.82414418]
[1730749870335,4.11312,2431.3,2431.0,0.16172455]
[1730749870549,5.24936303,2431.3,2431.1,0.16172455]
[1730749870737,5.24936303,2431.3,2430.9,3.82414418]
[1730749870938,5.24936303,2431.3,2431.0,0.16172582]
[1730749871164,5.24936303,2431.3,2430.9,7.93775418]
[1730749871348,5.02289885,2431.4,2431.0,4.35739308]
[1730749871556,5.02289885,2431.4,2431.1,0.16168516]
[1730749871738,5.02289885,2431.4,2431.0,4.19570792]
[1730749872371,5.02289885,2431.4,2431.1,0.16170567]
[1730749872532,5.02289885,2431.4,2431.0,4.45440329]
[1730749872732,5.02289885,2431.4,2431.1,0.16166576]
[1730749872973,5.02289885,2431.4,2431.0,4.19570792]
[1730749873176,5.02289885,2431.4,2431.1,0.16166519]
[1730749873472,5.02289885,2431.4,2431.3,1.53650026]
[1730749876199,4.11353,2431.0,2430.8,1.53650026]
[1730749876487,4.11401,2430.8,2430.6,1.79513298]
[1730749876781,4.1139,2430.8,2430.7,0.16161861]
[1730749877988,0.7601,2430.7,2430.3,0.25863272]
[1730749878141,8.2292,2430.4,2430.1,0.25860195]
[1730749878342,0.7922,2430.3,2430.0,0.16150313]
[1730749878569,0.7922,2430.3,2430.1,0.16150313]
[1730749878954,4.11432,2430.6,2430.2,4.11486]
[1730749879176,8.22864,2430.6,2430.1,7.68361172]
[1730749879478,4.11449,2430.5,2430.2,0.16140485]
[1730749879777,4.89957,2430.3,2430.1,3.56865172]
[1730749880448,4.89954,2430.3,2430.1,3.56865172]
[1730749881660,0.7848,2430.3,2430.1,3.56865172]
[1730749883483,2.11241433,2430.4,2430.1,3.56865172]
[1730749883687,0.902084,2430.6,2430.1,3.56865172]
[1730749883848,8.22926,2430.4,2430.1,3.56865172]
[1730749884185,8.22926,2430.4,2429.8,7.68420172]
[1730749884186,4.11488,2430.2,2429.8,7.68420172]
[1730749885249,4.1147,2430.4,2429.8,7.68414172]
[1730749885455,4.11431,2430.6,2429.9,4.11531]
[1730749885653,4.11431,2430.6,2430.0,4.11515]
[1730749885654,4.11455,2430.4,2430.0,4.11515]
[1730749886191,4.11473,2430.3,2429.9,4.11539]
[1730749886701,4.33723,2430.3,2429.9,4.11539]
[1730749888786,4.33723,2430.3,2429.8,7.68419172]
[1730749889091,4.11495,2430.2,2429.8,7.68419172]
[1730749889460,4.11495,2430.2,2429.8,7.68414172]
[1730749890295,4.11507,2430.1,2429.8,3.56865172]
[1730749891499,0.2225,2430.0,2429.8,3.56865172]
[1730749891867,4.33774,2430.0,2429.8,3.56865172]
[1730749892503,4.33774,2430.0,2429.6,7.68439172]
[1730749894418,4.11542,2429.9,2429.6,3.56865172]
[1730749895011,4.11542,2429.9,2429.5,4.11599]
[1730749895182,4.11542,2429.9,2429.5,4.19830166]
[1730749896305,0.2225,2429.8,2429.5,4.11599]
[1730749897175,0.2225,2429.8,2429.3,6.44002136]
[1730749897176,0.656292,2429.8,2429.3,1.54944136]
[1730749897405,4.11584,2429.7,2429.3,1.54944136]
[1730749897713,4.11591,2429.6,2429.3,1.54944136]
[1730749899894,4.11578,2429.7,2429.3,5.66579136]
[1730749900096,0.2225,2430.0,2429.6,4.11574]
[1730749900271,0.2225,2430.0,2429.6,0.7799]
[1730749900677,0.2225,2430.0,2429.6,4.89572]
[1730749901104,4.33775,2430.0,2429.6,4.89572]
[1730749901513,4.33773,2430.0,2429.6,4.89579]
[1730749901813,0.2225,2430.3,2429.7,4.11572]
[1730749902119,4.11515,2430.1,2429.7,4.11572]
[1730749902487,4.11497,2430.2,2429.7,4.19802991]
[1730749902703,4.11497,2430.2,2429.7,4.11572]
[1730749903088,4.11496,2430.2,2429.8,7.68421172]
[1730749904204,4.11496,2430.2,2429.8,3.56865172]
[1730749905022,4.11496,2430.2,2429.8,7.76651833]
[1730749905222,4.11496,2430.2,2429.8,7.68421172]
[1730749905518,4.11496,2430.2,2429.9,0.16151708]
[1730749905720,4.11496,2430.2,2429.8,7.68421172]
[1730749905928,4.11496,2430.2,2429.9,0.16151697]
[1730749906095,0.2225,2430.3,2429.9,1.3825]
[1730749906406,4.11455,2430.4,2430.1,3.56865172]
[1730749907135,4.11474,2430.3,2430.1,3.56865172]
[1730749907296,4.11488,2430.2,2429.9,1.3825]
[1730749907492,4.11488,2430.2,2430.0,0.16178328]
[1730749907689,4.33738,2430.2,2430.1,0.16178328]
[1730749908028,4.11524,2430.0,2429.8,3.56865172]
[1730749908229,4.11524,2430.0,2429.9,0.16179716]
[1730749908428,4.11507,2430.1,2429.9,0.16179716]
[1730749908589,8.23021,2430.1,2430.0,0.16179716]
[1730749909215,4.11507,2430.1,2430.0,0.16179716]
[1730749910211,4.33741,2430.2,2430.0,0.16179716]
[1730749910415,4.33741,2430.2,2429.9,0.25898429]
[1730749910589,4.33741,2430.2,2430.0,0.16184844]
[1730749910785,4.33741,2430.2,2429.8,7.68416172]
[1730749911038,4.33741,2430.2,2429.9,0.16184808]
[1730749911325,4.33741,2430.2,2430.0,0.16184808]
[1730749911535,4.33741,2430.2,2429.9,0.25900978]
[1730749911692,4.33741,2430.2,2430.0,0.16186438]
[1730749911893,4.11505,2430.1,2429.8,3.56865172]
[1730749912114,4.11505,2430.1,2429.9,0.42084538]
[1730749912436,4.11505,2430.1,2430.0,0.16185329]
[1730749913631,4.11505,2430.1,2430.0,0.16188422]
[1730749914195,4.3374,2430.2,2430.0,0.16188422]
[1730749914390,4.3374,2430.2,2430.1,0.16188422]
[1730749915221,4.11422,2430.6,2430.2,4.11486]
[1730749915222,4.33681,2430.6,2430.2,4.11486]
[1730749915652,0.1951519,2430.5,2430.3,0.16189386]
[1730749915826,0.1951519,2430.5,2430.2,4.11486]
[1730749916133,0.1951519,2430.5,2430.3,0.16189581]
[1730749916324,0.1951519,2430.5,2430.2,4.37392073]
[1730749916634,0.1951519,2430.5,2430.3,4.27658996]
[1730749916836,0.1951519,2430.5,2430.4,8.63718168]
[1730749917392,0.1951519,2430.5,2430.4,8.63718229]
[1730749919142,0.1951519,2430.5,2430.4,9.44607744]
[1730749919431,0.1951519,2430.5,2430.4,12.44607744]
[1730749920710,0.1951519,2430.5,2430.4,12.44563635]
[1730749921321,0.1951519,2430.5,2430.4,12.75331286]
[1730749922659,0.1951519,2430.5,2430.4,12.75330564]
[1730749923166,0.1951519,2430.5,2430.4,12.02529172]
[1730749923321,0.1951519,2430.5,2430.4,12.44511617]
[1730749923516,0.1951519,2430.5,2430.4,12.44506921]
[1730749923714,0.1951519,2430.5,2430.4,12.18673431]
[1730749923945,0.1951519,2430.5,2430.4,12.44501525]
[1730749924118,0.1951519,2430.5,2430.4,12.18673431]
[1730749926936,0.1951519,2430.5,2430.4,12.18664275]
[1730749927420,0.1951519,2430.5,2430.4,12.44479059]
[1730749927722,0.1951519,2430.5,2430.4,12.75227698]
[1730749928021,0.1951519,2430.5,2430.4,12.44479059]
[1730749928227,0.1951519,2430.5,2430.4,12.18664275]
[1730749929362,0.1951519,2430.5,2430.4,4.27589103]
[1730749929563,0.1951519,2430.5,2430.4,4.11454]
[1730749929768,0.1951519,2430.5,2430.4,7.92679543]
[1730749930077,0.1951519,2430.5,2430.4,7.84451891]
[1730749930276,0.1951519,2430.5,2430.4,7.92679788]
[1730749930566,0.1951519,2430.5,2430.4,7.92679979]
[1730749931274,0.1951519,2430.5,2430.4,8.47679979]
[1730749931565,0.1951519,2430.5,2430.4,9.14982059]
[1730749933364,0.1951519,2430.5,2430.4,9.40802609]
[1730749933731,0.1951519,2430.5,2430.4,9.40802717]
[1730749933960,0.1951519,2430.5,2430.4,8.98849172]
[1730749934162,0.1951519,2430.5,2430.4,9.40805725]
[1730749934364,0.1951519,2430.5,2430.4,9.40806133]
[1730749934865,0.1951519,2430.5,2430.4,9.14985436]
[1730749937683,0.1951519,2430.5,2430.4,9.14991049]
[1730749938392,0.1951519,2430.5,2430.4,9.40824748]
[1730749941384,0.1951519,2430.5,2430.4,8.98849172]
[1730749941683,0.1951519,2430.5,2430.4,9.40862164]
[1730749942200,0.1951519,2430.5,2430.4,12.40862164]
[1730749945303,0.1951519,2430.5,2430.4,12.40917781]
[1730749945457,0.1951519,2430.5,2430.4,11.91431901]
[1730749947482,0.1951519,2430.5,2430.4,12.22168882]
[1730749947813,0.1951519,2430.5,2430.4,11.91431901]
[1730749948595,0.1951519,2430.5,2430.4,11.91532835]
[1730749950290,0.1951519,2430.5,2430.4,12.22275784]
[1730749950606,0.1951519,2430.5,2430.4,11.91532835]
[1730749950963,0.1951519,2430.5,2430.4,12.22277097]
[1730749952392,0.1951519,2430.5,2430.4,11.49363292]
[1730749952614,0.1951519,2430.5,2430.4,12.22274609]
[1730749955216,0.37512885,2431.4,2431.1,4.11325]
[1730749955383,0.37512885,2431.4,2431.2,0.16215302]
[1730749955738,0.37512885,2431.4,2431.3,0.16215302]
[1730749955866,0.37512885,2431.4,2431.3,1.69904948]
[1730749956069,0.37512885,2431.4,2431.3,1.69899652]
[1730749956508,0.37512885,2431.4,2431.3,1.53689646]
[1730749956812,0.37512885,2431.4,2431.3,1.69896796]
[1730749957277,0.37512885,2431.4,2431.3,1.69896675]
[1730749959305,0.37512885,2431.4,2431.3,1.53689646]
[1730749960227,0.37512885,2431.4,2431.3,1.69890289]
[1730749960795,0.37512885,2431.4,2431.3,1.53689646]
[1730749963130,0.37512885,2431.4,2431.3,1.69887191]
[1730749963339,0.37512885,2431.4,2431.3,1.53689646]
[1730749963922,0.37512885,2431.4,2431.3,1.69886425]
[1730749964411,0.37512885,2431.4,2431.3,1.53689646]
[1730749969421,0.37512885,2431.4,2431.3,1.69931191]
[1730749970036,0.15262885,2431.4,2431.3,10.41748415]
[1730749970240,0.15262885,2431.4,2431.3,10.72558029]
[1730749970958,0.15262885,2431.4,2431.3,11.43868392]
[1730749971324,0.15262885,2431.4,2431.3,10.72558029]
[1730749971524,0.15262885,2431.4,2431.3,11.0161509]
[1730749971724,0.15262885,2431.4,2431.3,11.43790138]
[1730749972222,0.15262885,2431.4,2431.3,10.72506374]
[1730749975221,0.15262885,2431.4,2431.3,10.46501484]
[1730749975421,0.15262885,2431.4,2431.3,10.41687628]
[1730749975655,0.15262885,2431.4,2431.3,9.07157628]
[1730749976856,0.15262885,2431.4,2431.3,9.07149938]
[1730749977761,0.15262885,2431.4,2431.3,9.62149938]
[1730749978606,0.15262885,2431.4,2431.3,9.19991646]
[1730749978897,0.15262885,2431.4,2431.3,9.62148606]
[1730749981272,0.15262885,2431.4,2431.3,9.19991646]
[1730749981472,0.15262885,2431.4,2431.3,9.62156141]
[1730749984919,0.15262885,2431.4,2431.3,9.19991646]
[1730749985228,0.15262885,2431.4,2431.3,6.0717251]
[1730749985529,0.15262885,2431.4,2431.3,5.81214027]
[1730749985726,0.15262885,2431.4,2431.3,6.0717251]
[1730749988491,0.15262885,2431.4,2431.3,1.9587051]
[1730749988727,0.15262885,2431.4,2431.3,1.69912027]
[1730749988934,0.15262885,2431.4,2431.3,1.9587781]
[1730749989631,0.15262885,2431.4,2431.3,1.95878066]
[1730749989931,0.15262885,2431.4,2431.3,1.95878026]
[1730749990126,0.15262885,2431.4,2431.3,1.69912027]
[1730749991751,0.15262885,2431.4,2431.3,0.16222381]
[1730749991891,4.26547885,2431.4,2431.3,0.1622832]
[1730749992294,0.15262885,2431.4,2431.1,5.65025646]
[1730749992535,0.15262885,2431.4,2431.2,0.42197302]
[1730749992720,0.15262885,2431.4,2431.3,0.16228677]
[1730749993642,4.26547885,2431.4,2431.3,1.69918323]
[1730749994597,4.48797885,2431.4,2431.3,0.16228677]
[1730749995535,4.48797885,2431.4,2431.1,1.53689646]
[1730749995732,4.48797885,2431.4,2431.2,0.16231098]
[1730749995935,4.11302,2431.3,2431.1,1.53689646]
[1730749996135,4.11302,2431.3,2431.2,0.16231326]
[1730749999150,4.11302,2431.3,2431.2,0.16231778]
[1730749999674,4.48802885,2431.4,2431.2,0.16231778]
[1730749999818,4.48802885,2431.4,2431.1,1.53689646]
[1730749999819,0.37512885,2431.4,2431.3,1.53689646]
[1730750000131,0.37512885,2431.4,2431.3,1.69921222]
[1730750000336,0.15262885,2431.4,2431.3,7.21539517]
[1730750000536,0.15262885,2431.4,2431.3,7.4750599]
[1730750000870,0.15262885,2431.4,2431.3,7.70084018]
[1730750001159,0.15262885,2431.4,2431.3,7.7830883]
[1730750002845,0.15262885,2431.4,2431.3,7.7008138]
[1730750003049,0.15262885,2431.4,2431.3,6.97081646]
[1730750003255,0.15262885,2431.4,2431.3,7.700822]
[1730750005334,0.15262885,2431.4,2431.3,7.70093656]
[1730750005836,0.3421021,2431.4,2431.3,7.70093656]
[1730750009162,0.3421021,2431.4,2431.3,7.70090673]
[1730750010151,0.3421021,2431.4,2431.3,7.27884118]
[1730750010367,0.3421021,2431.4,2431.3,7.70093156]
[1730750013959,0.3421021,2431.4,2431.3,7.39286632]
[1730750014147,0.3421021,2431.4,2431.3,7.70098147]
[1730750014351,0.3421021,2431.4,2431.3,7.27894068]
[1730750014675,0.3421021,2431.4,2431.3,7.70095425]
[1730750015087,0.3421021,2431.4,2431.3,7.78320298]
[1730750015378,0.08244291,2431.4,2431.3,12.56668936]
[1730750015562,0.08244291,2431.4,2431.3,12.48444063]
[1730750017380,0.08244291,2431.4,2431.3,11.4143488]
[1730750017673,0.08244291,2431.4,2431.3,10.68421101]
[1730750017880,0.08244291,2431.4,2431.3,10.70092177]
[1730750018339,0.08244291,2431.4,2431.3,11.4143217]
[1730750018539,0.08244291,2431.4,2431.3,10.70092177]
[1730750018740,0.08244291,2431.4,2431.3,12.48439562]
[1730750021502,0.08244291,2431.4,2431.3,11.75429031]
[1730750021795,0.08244291,2431.4,2431.3,12.48429838]
[1730750022559,0.08244291,2431.4,2431.3,10.70082453]
[1730750022758,0.08244291,2431.4,2431.3,12.48418873]
[1730750024563,0.08244291,2431.4,2431.3,13.34417527]
[1730750025173,0.08244291,2431.4,2431.3,12.92230147]
[1730750025374,0.08244291,2431.4,2431.3,13.34408819]